bitfinex/quotes_SOLUSD_20241024
["timestamp","ask_amount","ask_price","bid_price","bid_amount"]
[1729762821235,17.16424392,171.15,171.09,17.16424392]
[1729762821641,17.16424392,171.14,171.06,15.4151]
[1729762821827,17.16424392,171.13,171.05,12.93486074]
[1729762822040,17.28973392,171.13,171.07,17.16424392]
[1729762822956,17.28973392,171.13,171.08,17.16424392]
[1729762823146,0.12549,171.13,171.08,17.16424392]
[1729762824154,17.28973392,171.13,171.07,17.16424392]
[1729762824356,17.28973392,171.13,171.08,17.16424392]
[1729762824646,0.12549,171.13,171.09,17.16424392]
[1729762825144,33.49764392,171.17,171.12,17.36424392]
[1729762825745,15.5108,171.21,171.15,17.16424392]
[1729762825951,32.67504392,171.21,171.15,17.16424392]
[1729762826248,17.16424392,171.2,171.14,17.16424392]
[1729762827340,68.75697568,171.27,171.12,0.2]
[1729762827341,5.8371,171.32,171.19,17.16424392]
[1729762827540,17.16424392,171.22,171.15,7.94597514]
[1729762827729,17.16424392,171.22,171.13,15.4945]
[1729762827730,17.16424392,171.22,171.14,23.776884]
[1729762827926,17.16424392,171.22,171.16,17.16424392]
[1729762828345,17.16424392,171.22,171.14,23.776884]
[1729762828346,17.16424392,171.2,171.13,15.4945]
[1729762828547,17.16424392,171.19,171.14,17.16424392]
[1729762828856,17.16424392,171.2,171.14,17.16424392]
[1729762829148,17.28973392,171.2,171.14,17.16424392]
[1729762830036,17.16424392,171.17,171.12,0.2]
[1729762830743,0.12549,171.17,171.13,17.16424392]
[1729762832037,0.25098,171.18,171.13,17.16424392]
[1729762832237,16.0978,171.22,171.14,17.16424392]
[1729762832541,17.16424392,171.22,171.16,17.16424392]
[1729762832728,17.16424392,171.22,171.12,0.2]
[1729762832729,17.16424392,171.22,171.17,17.16424392]
[1729762833548,17.16424392,171.22,171.16,17.16424392]
[1729762834331,26.81883192,171.22,171.16,26.81883192]
[1729762835049,26.81883192,171.24,171.18,26.81883192]
[1729762835350,26.81883192,171.22,171.17,26.81883192]
[1729762835550,26.81883192,171.2,171.14,26.81883192]
[1729762836225,26.81883192,171.2,171.15,26.81883192]
[1729762837045,26.81883192,171.2,171.12,0.2]
[1729762837355,26.81883192,171.2,171.14,26.81883192]
[1729762838051,26.81883192,171.2,171.15,26.81883192]
[1729762838947,26.81883192,171.2,171.14,26.81883192]
[1729762839250,26.81883192,171.2,171.12,0.2]
[1729762839453,27.06981192,171.19,171.13,26.81883192]
[1729762839628,26.81883192,171.18,171.12,27.01883192]
[1729762840156,27.06981192,171.19,171.13,26.81883192]
[1729762840755,26.81883192,171.21,171.15,26.81883192]
[1729762840954,0.12549,171.2,171.16,26.81883192]
[1729762842365,0.25098,171.21,171.16,26.81883192]
[1729762842745,26.81883192,171.23,171.17,26.81883192]
[1729762842948,0.12549,171.22,171.17,26.81883192]
[1729762843538,16.0595,171.16,171.12,0.2]
[1729762843863,26.94432192,171.13,171.12,0.2]
[1729762844364,27.06981192,171.13,171.12,0.2]
[1729762848960,15.1796,171.22,171.12,27.01883192]
[1729762849257,26.81883192,171.18,171.12,27.01883192]
[1729762850069,11.8609,171.21,171.12,27.01883192]
[1729762850070,26.81883192,171.17,171.12,0.2]
[1729762850969,0.12549,171.16,171.12,0.2]
[1729762851445,0.25098,171.17,171.12,27.01883192]
[1729762853750,27.06981192,171.17,171.12,0.2]
[1729762854066,27.06981192,171.17,171.12,27.01883192]
[1729762856466,26.81883192,171.18,171.12,27.01883192]
[1729762856866,15.1796,171.22,171.12,27.01883192]
[1729762856867,26.81883192,171.2,171.15,26.81883192]
[1729762857060,41.99843192,171.22,171.16,26.81883192]
[1729762857243,26.81883192,171.19,171.13,26.81883192]
[1729762857850,26.81883192,171.2,171.14,26.81883192]
[1729762858372,0.25098,171.19,171.14,26.81883192]
[1729762859451,0.12549,171.19,171.14,26.81883192]
[1729762859775,0.12549,171.19,171.15,26.81883192]
[1729762860669,26.94432192,171.19,171.13,26.81883192]
[1729762860974,26.81883192,171.18,171.12,27.01883192]
[1729762861172,0.12549,171.16,171.12,27.01883192]
[1729762861659,0.25098,171.17,171.12,27.01883192]
[1729762863374,6.09318,171.17,171.12,27.01883192]
[1729762863580,0.25098,171.14,171.12,0.2]
[1729762864176,0.25098,171.15,171.12,0.2]
[1729762864674,26.81883192,171.14,171.12,0.2]
[1729762866053,0.12549,171.13,171.12,0.2]
[1729762866274,26.94432192,171.13,171.12,0.2]
[1729762867477,0.12549,171.13,171.12,0.2]
[1729762868085,64.30691105,171.0,170.96,3.24]
[1729762868369,0.2,171.1,171.0,23.776884]
[1729762868577,0.2,171.1,171.07,26.81883192]
[1729762869879,0.1,171.1,171.07,26.81883192]
[1729762870057,0.1,171.09,171.06,26.81883192]
[1729762870667,0.1,171.09,171.0,50.59571592]
[1729762870668,0.1,171.08,171.05,26.81883192]
[1729762871065,0.1,171.08,171.06,26.81883192]
[1729762872568,0.1,171.08,171.02,23.776884]
[1729762872762,0.1,171.08,171.06,26.81883192]
[1729762873676,0.2,171.09,171.06,26.81883192]
[1729762873876,26.81883192,171.11,171.02,23.776884]
[1729762873877,0.1,171.1,171.08,26.81883192]
[1729762874057,0.2,171.12,171.09,26.81883192]
[1729762874894,0.1,171.09,171.07,26.81883192]
[1729762875177,0.1,171.08,171.02,23.776884]
[1729762875357,0.1,171.06,171.04,26.81883192]
[1729762875558,0.1,171.06,171.03,26.81883192]
[1729762875768,0.2,171.07,171.04,26.81883192]
[1729762876281,0.2,171.07,171.03,26.81883192]
[1729762876484,27.01883192,171.09,171.04,26.81883192]
[1729762876784,0.1,171.08,171.04,26.81883192]
[1729762877452,0.1,171.08,171.03,26.81883192]
[1729762877652,0.1,171.08,171.02,26.81883192]
[1729762877857,0.1,171.07,171.02,26.81883192]
[1729762878352,26.91883192,171.07,171.02,26.81883192]
[1729762878557,27.01883192,171.06,171.0,15.5821]
[1729762878787,0.1,171.04,171.0,15.5821]
[1729762879084,0.1,171.04,170.99,26.81883192]
[1729762879265,0.2,171.04,170.99,26.81883192]
[1729762879576,0.1,171.02,170.98,26.81883192]
[1729762879786,0.2,171.02,170.98,26.81883192]
[1729762880084,0.1,171.02,170.98,26.81883192]
[1729762880388,0.1,171.02,170.95,15.1519]
[1729762880389,0.2,171.02,170.99,26.81883192]
[1729762880773,0.2,171.02,170.98,26.81883192]
[1729762881167,0.2,171.03,170.99,26.81883192]
[1729762881361,0.1,171.04,171.01,26.81883192]
[1729762881684,0.1,171.06,171.02,26.81883192]
[1729762882365,0.2,171.06,171.02,26.81883192]
[1729762882869,27.01883192,171.06,171.01,26.81883192]
[1729762883071,27.01883192,171.06,171.0,26.81883192]
[1729762883272,26.91883192,171.06,170.98,20.0]
[1729762883458,26.91883192,171.06,171.0,26.81883192]
[1729762883459,27.01883192,171.06,171.0,26.81883192]
[1729762883662,27.01883192,171.06,171.01,26.81883192]
[1729762884694,0.1,171.03,170.96,20.0]
[1729762884990,0.1,171.05,171.0,26.81883192]
[1729762885368,0.2,171.05,171.0,26.81883192]
[1729762885604,0.1,171.05,171.0,26.81883192]
[1729762885770,0.1,171.06,171.01,26.81883192]
[1729762886089,0.2,171.06,171.01,26.81883192]
[1729762886470,0.1,171.06,171.01,26.81883192]
[1729762886787,0.2,171.11,171.05,26.81883192]
[1729762886990,0.1,171.11,171.07,26.81883192]
[1729762887163,0.1,171.1,171.07,26.81883192]
[1729762887360,0.2,171.11,171.07,26.81883192]
[1729762887562,26.91883192,171.12,171.07,26.81883192]
[1729762887764,27.01883192,171.13,171.08,26.81883192]
[1729762887985,0.1,171.12,171.08,26.81883192]
[1729762888184,0.2,171.12,171.08,26.81883192]
[1729762889093,16.1379,171.17,171.02,21.50808748]
[1729762889094,0.1,171.14,171.1,26.81883192]
[1729762889395,0.2,171.14,171.09,26.81883192]
[1729762889699,0.1,171.13,171.09,26.81883192]
[1729762890379,0.2,171.14,171.09,26.81883192]
[1729762890580,0.1,171.14,171.1,26.81883192]
[1729762890890,0.1,171.15,171.1,26.81883192]
[1729762891069,0.2,171.16,171.11,26.81883192]
[1729762891468,0.2,171.15,171.11,26.81883192]
[1729762891669,0.1,171.15,171.11,26.81883192]
[1729762891887,0.1,171.15,171.12,26.81883192]
[1729762892079,0.2,171.16,171.12,26.81883192]
[1729762892274,0.1,171.15,171.12,13.40941596]
[1729762892494,27.01883192,171.15,171.1,26.81883192]
[1729762892681,27.01883192,171.15,171.08,23.776884]
[1729762892885,27.01883192,171.15,171.1,26.81883192]
[1729762893492,26.91883192,171.15,171.1,26.81883192]
[1729762893802,27.01883192,171.15,171.09,26.81883192]
[1729762894501,0.1,171.12,171.07,26.81883192]
[1729762896897,26.81883192,171.11,171.03,43.776884]
[1729762897098,26.91883192,171.09,171.04,26.81883192]
[1729762897303,0.1,171.09,171.04,26.81883192]
[1729762898090,0.2,171.12,171.07,26.81883192]
[1729762898272,0.1,171.12,171.09,26.81883192]
[1729762898473,0.2,171.13,171.09,26.81883192]
[1729762898777,0.1,171.12,171.09,26.81883192]
[1729762898979,0.2,171.13,171.09,26.81883192]
[1729762899181,0.1,171.11,171.08,26.81883192]
[1729762899385,0.1,171.11,171.06,26.81883192]
[1729762899781,26.91883192,171.12,171.07,26.81883192]
[1729762900281,27.01883192,171.13,171.07,26.81883192]
[1729762900877,0.2,171.12,171.07,26.81883192]
[1729762901209,27.01883192,171.12,171.07,26.81883192]
[1729762901375,26.91883192,171.11,171.05,5.97958748]
[1729762901581,26.91883192,171.11,171.05,32.7984194]
[1729762902003,0.1,171.11,171.06,26.81883192]
[1729762902711,0.1,171.12,171.06,26.81883192]
[1729762902897,0.1,171.11,171.06,26.81883192]
[1729762903494,27.01883192,171.12,171.06,26.81883192]
[1729762903807,0.1,171.11,171.07,26.81883192]
[1729762904412,0.1,171.11,171.06,26.81883192]
[1729762905202,27.01883192,171.12,171.06,26.81883192]
[1729762905781,0.2,171.12,171.07,26.81883192]
[1729762906711,0.1,171.18,171.12,23.776884]
[1729762907008,0.1,171.18,171.13,35.21353051]
[1729762910304,27.0465977,171.12,171.06,26.8465977]
[1729762910804,0.2,171.12,171.07,26.8465977]
[1729762911191,27.0465977,171.12,171.06,26.8465977]
[1729762911393,27.0465977,171.12,171.07,26.8465977]
[1729762911579,0.2,171.12,171.07,26.8465977]
[1729762912006,0.2,171.12,171.08,26.8465977]
[1729762912728,6.0992,171.17,171.05,23.776884]
[1729762912729,13.62329885,171.15,171.1,26.8465977]
[1729762913013,0.1,171.14,171.1,26.8465977]
[1729762914313,0.2,171.14,171.1,26.8465977]
[1729762914931,0.2,171.14,171.09,26.8465977]
[1729762915114,0.1,171.13,171.09,26.8465977]
[1729762915294,0.1,171.13,171.08,26.8465977]
[1729762915811,0.1,171.13,171.09,26.8465977]
[1729762916006,0.2,171.11,171.06,26.8465977]
[1729762920725,0.2,171.11,171.07,26.8465977]
[1729762922021,0.2,171.11,171.06,26.8465977]
[1729762922718,0.2,171.09,171.04,26.8465977]
[1729762922926,0.2,171.09,171.05,26.8465977]
[1729762923424,0.1,171.09,171.06,26.8465977]
[1729762924129,0.1,171.11,171.01,6.17537574]
[1729762924130,0.1,171.1,171.07,26.8465977]
[1729762924297,0.2,171.12,171.09,26.8465977]
[1729762924699,0.1,171.11,171.09,26.8465977]
[1729762925524,0.2,171.12,171.09,26.8465977]
[1729762925716,0.1,171.11,171.09,26.8465977]
[1729762925931,0.1,171.12,171.09,26.8465977]
[1729762925932,0.2,171.12,171.09,26.8465977]
[1729762926918,0.1,171.11,171.09,26.8465977]
[1729762927223,0.1,171.11,171.08,26.8465977]
[1729762927402,0.2,171.12,171.08,26.8465977]
[1729762929611,0.1,171.11,171.08,26.8465977]
[1729762930407,0.2,171.12,171.08,26.8465977]
[1729762930913,0.1,171.11,171.08,26.8465977]
[1729762933719,0.1,171.12,171.08,26.8465977]
[1729762934627,0.1,171.09,171.05,26.8465977]
[1729762934852,0.1,171.09,171.06,26.8465977]
[1729762936807,0.1,171.12,171.08,26.8465977]
[1729762937008,0.1,171.12,171.09,26.8465977]
[1729762938739,0.1,171.13,171.1,26.8465977]
[1729762939109,0.2,171.13,171.1,26.8465977]
[1729762939331,0.1,171.11,171.1,26.8465977]
[1729762939643,0.1,171.13,171.1,26.8465977]
[1729762940037,0.2,171.13,171.1,26.8465977]
[1729762940926,0.1,171.13,171.1,26.8465977]
[1729762941240,0.1,171.14,171.11,26.8465977]
[1729762941433,0.1,171.16,171.13,26.8465977]
[1729762941847,0.1,171.17,171.15,13.42329885]
[1729762942017,0.1,171.17,171.16,26.8465977]
[1729762943941,16.495,171.2,171.16,26.8465977]
[1729762944124,0.2,171.21,171.17,26.8465977]
[1729762944324,15.5621,171.24,171.1,49.78868259]
[1729762944325,0.2,171.22,171.19,26.8465977]
[1729762944634,0.1,171.24,171.21,26.8465977]
[1729762944835,0.2,171.24,171.22,26.8465977]
[1729762945136,0.1,171.23,171.22,26.8465977]
[1729762945347,0.2,171.23,171.19,26.8465977]
[1729762945938,0.2,171.23,171.2,26.8465977]
[1729762946117,0.2,171.23,171.21,1.84]
[1729762948826,0.2,171.23,171.2,26.8465977]
[1729762949338,0.2,171.21,171.14,15.5777]
[1729762949523,0.2,171.21,171.16,28.6865977]
[1729762950241,0.2,171.21,171.17,26.8465977]
[1729762951136,0.2,171.21,171.16,1.84]
[1729762951332,0.2,171.21,171.17,26.8465977]
[1729762952044,0.1,171.21,171.17,26.8465977]
[1729762952252,0.1,171.22,171.19,26.8465977]
[1729762952552,0.2,171.23,171.21,26.8465977]
[1729762952724,0.1,171.23,171.21,26.8465977]
[1729762952925,0.1,171.24,171.22,26.8465977]
[1729762954438,0.2,171.24,171.22,26.8465977]
[1729762954640,0.2,171.24,171.21,26.8465977]
[1729762955353,0.1,171.23,171.21,26.8465977]
[1729762955742,0.2,171.23,171.18,26.8465977]
[1729762955939,15.5621,171.28,171.16,1.84]
[1729762955940,0.2,171.21,171.19,0.08]
[1729762956257,0.1,171.2,171.19,0.08]
[1729762957239,0.1,171.21,171.19,26.8465977]
[1729762957548,0.1,171.22,171.2,26.8465977]
[1729762959745,0.1,171.23,171.2,26.8465977]
[1729762959943,0.1,171.23,171.21,26.8465977]
[1729762961428,0.2,171.23,171.21,26.8465977]
[1729762961633,0.1,171.23,171.21,26.8465977]
[1729762962258,0.1,171.24,171.21,26.8465977]
[1729762962443,0.2,171.26,171.23,26.8465977]
[1729762962648,0.1,171.25,171.23,26.8465977]
[1729762963760,0.1,171.27,171.24,26.8465977]
[1729762963937,0.1,171.27,171.25,26.8465977]
[1729762964261,0.1,171.26,171.25,26.8465977]
[1729762964437,0.1,171.26,171.24,26.8465977]
[1729762965143,0.1,171.27,171.25,26.8465977]
[1729762966759,0.1,171.29,171.26,26.8465977]
[1729762967073,0.1,171.29,171.27,26.8465977]
[1729762967249,0.2,171.29,171.27,26.8465977]
[1729762967444,0.1,171.28,171.26,26.8465977]
[1729762967630,0.1,171.28,171.25,26.8465977]
[1729762968039,0.1,171.28,171.26,26.8465977]
[1729762968759,0.1,171.29,171.26,26.8465977]
[1729762969159,0.1,171.32,171.27,50.6234817]
[1729762969356,6.2906,171.33,171.3,26.8465977]
[1729762969553,0.1,171.32,171.3,26.8465977]
[1729762970174,0.2,171.35,171.3,26.8465977]
[1729762970357,0.1,171.34,171.31,26.8465977]
[1729762970665,0.1,171.34,171.29,26.8465977]
[1729762971163,0.2,171.34,171.3,26.8465977]
[1729762971370,0.1,171.31,171.27,50.6234817]
[1729762971667,0.2,171.29,171.24,26.8465977]
[1729762972544,0.1,171.29,171.22,25.536884]
[1729762972756,0.2,171.29,171.24,26.8465977]
[1729762972951,0.1,171.27,171.23,26.8465977]
[1729762973152,27.0465977,171.26,171.22,1.76]
[1729762973367,27.0465977,171.26,171.2,26.8465977]
[1729762973661,27.0465977,171.26,171.21,26.8465977]
[1729762974565,6.5646,171.3,171.18,26.8465977]
[1729762974566,0.1,171.23,171.18,26.8465977]
[1729762974737,0.1,171.23,171.19,0.16]
[1729762975356,0.2,171.22,171.19,0.16]
[1729762975769,0.2,171.22,171.17,26.8465977]
[1729762975968,0.1,171.21,171.17,26.8465977]
[1729762976143,0.1,171.2,171.13,20.16]
[1729762976467,0.1,171.19,171.15,26.8465977]
[1729762976669,0.1,171.18,171.16,0.16]
[1729762978146,0.1,171.18,171.15,26.8465977]
[1729762978847,0.1,171.19,171.15,26.8465977]
[1729762979566,0.1,171.18,171.14,26.8465977]
[1729762979769,0.1,171.18,171.15,23.776884]
[1729762980458,0.1,171.18,171.14,26.8465977]
[1729762981752,0.2,171.19,171.14,26.8465977]
[1729762981958,0.1,171.18,171.14,26.8465977]
[1729762982678,0.1,171.17,171.14,26.8465977]
[1729762984670,0.2,171.19,171.14,26.8465977]
[1729762984997,0.1,171.17,171.14,26.8465977]
[1729762985751,27.0465977,171.19,171.14,26.8465977]
[1729762985959,0.1,171.17,171.14,26.8465977]
[1729762986781,0.1,171.18,171.14,26.8465977]
[1729762987775,0.1,171.17,171.14,26.8465977]
[1729762988878,0.2,171.19,171.14,26.8465977]
[1729762989086,0.1,171.17,171.14,26.8465977]
[1729762990765,0.2,171.19,171.14,26.8465977]
[1729762991464,0.1,171.19,171.16,26.8465977]
[1729762992477,0.1,171.19,171.16,17.16311666]
[1729762992689,0.1,171.19,171.17,17.16311666]
[1729762992858,0.1,171.2,171.16,17.16311666]
[1729762996565,0.1,171.21,171.18,17.16311666]
[1729762997067,0.1,171.23,171.2,17.16311666]
[1729762997661,0.1,171.24,171.21,17.16311666]
[1729762999891,0.1,171.23,171.21,17.16311666]
[1729763000789,0.1,171.25,171.22,17.16311666]
[1729763000976,0.1,171.26,171.23,17.16311666]
[1729763001301,0.1,171.24,171.23,17.16311666]
[1729763001498,0.1,171.25,171.23,17.16311666]
[1729763001700,0.1,171.24,171.23,17.16311666]
[1729763003770,0.1,171.25,171.23,17.16311666]
[1729763004274,0.1,171.26,171.23,17.16311666]
[1729763004675,0.1,171.26,171.18,4.65869545]
[1729763004872,0.1,171.25,171.23,17.16311666]
[1729763005267,0.1,171.26,171.24,17.16311666]
[1729763005478,0.1,171.26,171.25,17.16311666]
[1729763005866,0.1,171.28,171.25,17.16311666]
[1729763006066,0.1,171.28,171.26,17.16311666]
[1729763007967,0.1,171.29,171.26,17.16311666]
[1729763009084,0.1,171.28,171.26,17.16311666]
[1729763009406,0.1,171.3,171.27,17.16311666]
[1729763009696,16.1735,171.32,171.29,17.16311666]
[1729763009882,0.1,171.32,171.29,17.16311666]
[1729763010285,0.1,171.31,171.29,17.16311666]
[1729763010488,0.2,171.31,171.29,17.16311666]
[1729763010670,0.2,171.31,171.22,15.0462]
[1729763010872,8.68155833,171.26,171.21,1.7]
[1729763011085,17.16311666,171.23,171.14,15.2003]
[1729763011268,17.26311666,171.23,171.18,17.16311666]
[1729763012496,17.26311666,171.23,171.19,23.776884]
[1729763012788,17.36311666,171.24,171.18,17.16311666]
[1729763013096,0.1,171.23,171.18,17.16311666]
[1729763013997,0.1,171.23,171.19,23.776884]
[1729763014473,0.2,171.23,171.18,26.80971822]
[1729763014680,0.2,171.22,171.17,26.80971822]
[1729763014877,27.00971822,171.21,171.15,26.80971822]
[1729763015104,0.1,171.19,171.15,26.80971822]
[1729763015285,0.1,171.19,171.16,26.80971822]
[1729763016895,0.1,171.2,171.16,26.80971822]
[1729763017202,0.1,171.19,171.16,26.80971822]
[1729763018885,0.1,171.2,171.17,23.776884]
[1729763019206,0.1,171.21,171.18,26.80971822]
[1729763019583,0.1,171.2,171.17,50.58660222]
[1729763019789,0.1,171.21,171.17,50.58660222]
[1729763019983,0.1,171.2,171.17,50.58660222]
[1729763020580,0.1,171.21,171.17,50.58660222]
[1729763021002,0.1,171.2,171.17,23.776884]
[1729763021302,0.1,171.19,171.16,23.776884]
[1729763021488,0.1,171.22,171.17,26.80971822]
[1729763021799,0.1,171.22,171.18,26.80971822]
[1729763022015,0.1,171.23,171.18,26.80971822]
[1729763022186,0.1,171.23,171.19,26.80971822]
[1729763024501,0.2,171.23,171.19,26.80971822]
[1729763024705,0.2,171.23,171.18,26.80971822]
[1729763024908,0.1,171.22,171.18,26.80971822]
[1729763025286,0.1,171.23,171.19,26.80971822]
[1729763025606,0.1,171.23,171.2,23.776884]
[1729763026704,0.1,171.22,171.2,23.776884]
[1729763027492,0.1,171.23,171.2,23.776884]
[1729763027694,0.1,171.22,171.2,23.776884]
[1729763028084,0.1,171.22,171.18,26.80971822]
[1729763028410,0.1,171.22,171.18,23.776884]
[1729763028616,0.1,171.22,171.18,26.80971822]
[1729763029102,0.2,171.25,171.2,26.80971822]
[1729763029309,0.2,171.25,171.21,26.80971822]
[1729763029508,0.1,171.25,171.21,26.80971822]
[1729763030034,0.2,171.25,171.21,26.80971822]
[1729763030184,0.1,171.24,171.21,26.80971822]
[1729763031706,0.2,171.26,171.22,26.80971822]
[1729763031893,0.2,171.26,171.22,23.776884]
[1729763032204,0.1,171.25,171.22,23.776884]
[1729763034414,0.1,171.24,171.19,17.15344992]
[1729763034617,0.2,171.25,171.2,40.93033392]
[1729763034814,0.2,171.25,171.2,17.15344992]
[1729763035015,0.1,171.24,171.2,17.15344992]
[1729763036718,0.1,171.25,171.21,40.93033392]
[1729763037087,0.2,171.25,171.21,40.93033392]
[1729763037612,17.35344992,171.25,171.21,23.776884]
[1729763037809,17.35344992,171.24,171.19,23.776884]
[1729763038017,0.2,171.24,171.19,40.93033392]
[1729763038497,0.2,171.24,171.2,17.15344992]
[1729763039116,0.2,171.24,171.16,2.93626728]
[1729763039117,17.25344992,171.24,171.16,2.93626728]
[1729763039411,17.25344992,171.2,171.14,17.15344992]
[1729763039620,17.25344992,171.2,171.15,17.24344992]
[1729763039799,0.2,171.21,171.17,17.15344992]
[1729763040000,0.2,171.21,171.16,17.15344992]
[1729763040201,17.35344992,171.21,171.15,0.09]
[1729763040399,17.35344992,171.2,171.16,23.776884]
[1729763040819,17.35344992,171.2,171.15,17.15344992]
[1729763041024,17.35344992,171.2,171.14,17.15344992]
[1729763042006,0.2,171.2,171.15,17.15344992]
[1729763042217,0.2,171.2,171.16,40.93033392]
[1729763042607,0.1,171.18,171.11,21.50927574]
[1729763042922,0.1,171.18,171.12,0.09]
[1729763043103,0.2,171.18,171.13,17.15344992]
[1729763043719,0.1,171.18,171.13,17.15344992]
[1729763043923,0.2,171.18,171.14,23.776884]
[1729763044126,17.35344992,171.18,171.14,23.776884]
[1729763044318,0.1,171.16,171.08,20.0]
[1729763044516,0.1,171.16,171.12,17.15344992]
[1729763046135,0.1,171.16,171.13,17.15344992]
[1729763047533,0.1,171.16,171.09,23.866884]
[1729763047829,0.1,171.13,171.11,23.776884]
[1729763048020,0.1,171.13,171.04,24.027864]
[1729763048213,0.1,171.13,171.09,17.15344992]
[1729763048409,0.2,171.13,171.09,17.15344992]
[1729763048730,0.1,171.12,171.09,40.93033392]
[1729763048924,0.1,171.12,171.09,17.15344992]
[1729763049535,0.2,171.13,171.09,17.15344992]
[1729763049711,0.1,171.12,171.09,17.15344992]
[1729763049912,0.1,171.12,171.04,1.68]
[1729763050127,0.1,171.11,171.08,17.15344992]
[1729763051115,0.1,171.11,171.05,23.776884]
[1729763051304,0.1,171.11,171.08,17.15344992]
[1729763052133,0.1,171.14,171.1,17.15344992]
[1729763052326,0.1,171.14,171.13,17.15344992]
[1729763054130,0.1,171.14,171.12,17.15344992]
[1729763055831,0.2,171.14,171.11,17.15344992]
[1729763056137,0.1,171.11,171.08,17.15344992]
[1729763058034,0.2,171.12,171.08,17.15344992]
[1729763058214,0.1,171.11,171.08,8.57672496]
[1729763058415,0.1,171.11,171.08,26.83992128]
[1729763059022,0.1,171.11,171.09,26.83992128]
[1729763059223,0.1,171.1,171.07,26.83992128]
[1729763059621,0.1,171.1,171.08,26.83992128]
[1729763059821,0.1,171.11,171.09,26.83992128]
[1729763060423,0.1,171.13,171.1,26.83992128]
[1729763060622,0.1,171.12,171.11,26.83992128]
[1729763060821,0.1,171.12,171.1,26.83992128]
[1729763062241,0.1,171.13,171.1,26.83992128]
[1729763062417,0.1,171.12,171.1,26.83992128]
[1729763063019,0.1,171.13,171.1,26.83992128]
[1729763063233,0.1,171.13,171.05,20.17]
[1729763063433,0.1,171.13,171.1,26.83992128]
[1729763063638,0.2,171.12,171.08,26.83992128]
[1729763066638,0.1,171.12,171.08,26.83992128]
[1729763066948,0.2,171.12,171.08,26.83992128]
[1729763068036,0.2,171.12,171.09,2.33850643]
[1729763068235,0.2,171.12,171.05,20.17]
[1729763068236,0.2,171.12,171.1,2.33850643]
[1729763068442,0.2,171.12,171.11,2.33850643]
[1729763068645,0.2,171.12,171.09,2.33850643]
[1729763068851,0.2,171.12,171.1,2.33850643]
[1729763069056,0.2,171.12,171.11,2.33850643]
[1729763069232,0.2,171.12,171.09,2.33850643]
[1729763069430,0.2,171.12,171.1,2.33850643]
[1729763069642,0.2,171.12,171.11,2.33850643]
[1729763071439,0.1,171.12,171.11,2.33850643]
[1729763071642,0.1,171.13,171.11,2.33850643]
[1729763071950,0.1,171.13,171.12,2.33850643]
[1729763072939,0.1,171.13,171.11,2.33830261]
[1729763073651,0.2,171.12,171.11,2.33830261]
[1729763073857,0.1,171.12,171.08,26.83992128]
[1729763074037,0.1,171.12,171.09,2.33830261]
[1729763074241,0.1,171.12,171.1,2.33830261]
[1729763074466,0.2,171.12,171.09,2.33830261]
[1729763074756,0.2,171.12,171.1,2.33830261]
[1729763074959,0.2,171.12,171.09,2.33830261]
[1729763075161,0.2,171.12,171.1,2.33830261]
[1729763075460,0.2,171.12,171.09,2.33830261]
[1729763075930,0.2,171.12,171.08,2.33830261]
[1729763076260,0.2,171.12,171.07,26.83992128]
[1729763076461,0.1,171.12,171.08,29.17837547]
[1729763076757,0.2,171.12,171.09,2.33845419]
[1729763076953,0.2,171.12,171.1,2.33845419]
[1729763077163,0.2,171.12,171.09,2.33845419]
[1729763077462,0.2,171.12,171.1,2.33845419]
[1729763077661,0.2,171.12,171.09,2.33845419]
[1729763077838,0.2,171.12,171.08,26.83992128]
[1729763078160,0.2,171.12,171.09,2.33845419]